Cogmind - Beta 14 @@@ ROGUE MODE // 2024.10.09 @ 15:06:42 Player: Kate+Gabe4evr Result: Destroyed by B-75 Beast with Heavy Plasma Cannon Performance ------------- Evolutions (5) 2500 Regions Visited (8) 1600 Robots Destroyed (79) 395 Value Destroyed (3312) 3312 Prototype IDs (0) 0 Alien Tech Used (0) 0 Bonus (547) 547 TOTAL SCORE: 8354 Bonus ------- High Alert Combat Kills 137 Follower Combat Kills 428 Friendly Fire -18 Cogmind --------- Core Integrity 0/1000 Matter 300/300 Energy 99/100 System Corruption 2% Temperature Cool (12) Movement Core (50) Location -5/Extension Parts ------- > --- POWER (2) -------- (None) > --- PROPULSION (5) --- (None) > --- UTILITY (5) ------ Improved Cooling System Improved Targeting Computer > --- WEAPON (5) ------- (None) > --- INVENTORY (5) ---- Fission Core Hardened Medium Armor Plating Insulated Plating Heavy Missile Launcher Heavy Flail Peak State ------------ > --- POWER ------------ Fission Core Neutrino Core > --- PROPULSION ------- Improved Titanium Leg Improved Titanium Leg Improved Titanium Leg Improved Titanium Leg Flexi-carbon Leg > --- UTILITY ---------- Advanced Heat Sink Large Storage Unit Advanced Terrain Scanner Improved Targeting Computer Improved Light Armor Plating > --- WEAPON ----------- Heavy Laser Wave Gun Phase Cannon Gauss Rifle KE Penetrator > --- INVENTORY -------- Fission Core Improved Titanium Leg Improved Titanium Leg Advanced Heat Sink Improved Cooling System Large Storage Unit Kinecellerator Hardened Medium Armor Plating Insulated Plating Heavy Ion Cannon Heavy Missile Launcher Plasma Cutter Heavy Flail [Rating: 77] Favorites ----------- Power Fission Core Engine Reinforced Deuterium Engine Power Core Fission Core Propulsion Improved Titanium Leg Treads Improved Treads Leg Improved Titanium Leg Utility Large Storage Unit Device Advanced Heat Sink Storage Large Storage Unit Processor Advanced Visual Processing Unit Protection Hardened Medium Armor Plating Weapon Gauss Cannon Energy Gun Heavy Laser Energy Cannon Heavy Plasma Cannon Ballistic Gun Autogun Ballistic Cannon Gauss Cannon Special Weapon Plasma Cutter Impact Weapon Heavy Flail Piercing Weapon Spear Build | -11 -10 -9 -9 -8 -7 -6 -5 -5 ------- Run | Yrd Mat Mat Sto Mat Fac Fac Fac Ext Slots Evolved 10 | . . 2 . 2 2 2 2 . Power 1 | . . . . . . . 1 . Propulsion 3 | . . 2 . . . . 1 . Utility 3 | . . . . 1 1 1 . . Weapon 3 | . . . . 1 1 1 . . Parts Attached 99 | 6 2 12 12 8 16 30 13 . Power 12 | 1 1 1 1 2 1 3 2 . Engine 2 | 1 . . . . 1 . . . Core 10 | . 1 1 1 2 . 3 2 . Reactor . | . . . . . . . . . Propulsion 32 | 2 . 8 4 4 1 9 4 . Treads 9 | . . . . 4 1 4 . . Leg 23 | 2 . 8 4 . . 5 4 . Wheel . | . . . . . . . . . Hover . | . . . . . . . . . Flight . | . . . . . . . . . Utility 17 | 1 1 2 2 1 2 6 2 . Device 7 | . 1 1 . . . 3 2 . Storage 4 | 1 . . 2 . 1 . . . Processor 3 | . . . . 1 1 1 . . Hackware . | . . . . . . . . . Protection 3 | . . 1 . . . 2 . . Artifact . | . . . . . . . . . Weapon 38 | 2 . 1 5 1 12 12 5 . Energy Gun 4 | . . . . . . 3 1 . Energy Cannon 4 | . . . . . . 2 2 . Ballistic Gun 16 | 2 . 1 4 1 3 3 2 . Ballistic Cannon 9 | . . . . . 9 . . . Launcher . | . . . . . . . . . Special Weapon 1 | . . . 1 . . . . . Impact Weapon 1 | . . . . . . 1 . . Slashing Weapon . | . . . . . . . . . Piercing Weapon 3 | . . . . . . 3 . . Special Melee Weapon . | . . . . . . . . . Unidentified Prototypes . | . . . . . . . . . Parts Lost 42 | . . 6 . . . 18 16 2 Power 6 | . . 1 . . . 2 3 . Propulsion 18 | . . 3 . . . 7 6 2 Utility 6 | . . 2 . . . 3 1 . Weapon 12 | . . . . . . 6 6 . Highest Loss Streak 13 | . . 6 . . . 9 13 2 To Critical Strikes 1 | . . . . . . 1 . . Average Slot Usage (%) 95 | . 94 89 100 98 100 93 97 20 Engine 1 | . 4 . . . 5 . . . Core 7 | . 9 9 11 9 1 5 10 . Treads 13 | . . . . 33 30 15 . . Leg 16 | . 28 36 44 . . 7 28 8 Device 8 | . 9 8 11 9 7 6 10 5 Storage 7 | . 14 11 11 9 7 6 4 . Processor 8 | . . . . 9 15 11 5 5 Protection 2 | . . 1 . . . 5 4 . Energy Gun 2 | . . . . . . 2 9 . Energy Cannon 2 | . . . . . . 3 7 . Ballistic Gun 14 | . 28 22 21 27 15 8 8 . Ballistic Cannon 5 | . . . . . 14 10 . . Piercing Weapon 1 | . . . . . . 2 . . Peak Build Rating 77 | 6 11 14 15 25 40 64 77 15 Average Rating 38 | 5 9 11 13 23 36 49 73 14 On Entrance 20 | . 6 11 13 15 25 39 64 15 Naked Turns . | . . . . . . . . . Heaviest Build 79 | 12 13 15 32 35 61 72 79 2 Greatest Support 100 | 20 20 40 40 88 88 88 100 3 Greatest Overweight (x) 12 | 1 . . . 1 . 12 . . Average Overweight (x) . | . . . . . . . . . Largest Inventory Capacity 15 | 8 8 8 15 15 15 15 15 5 Average Capacity 13 | 7 8 8 11 15 15 15 14 5 Most Carried 15 | 1 6 8 15 15 15 15 14 5 Average Carried 11 | . 3 7 9 13 14 12 12 5 Final Capacity 15 | 8 8 8 15 15 15 15 5 5 Final Carried 15 | 1 6 8 15 15 15 15 5 5 Class Distribution -------------------- 38% | Gunner 17% | Commander-Gunner 16% | Mutant 14% | Scavenger-Gunner 8% | Commander-Mutant 5% | Scavenger-Mutant Dominant Class ---------------- Mutant | -10/Materials Mutant | -9/Materials Commander-Mutant | -9/Storage Commander-Gunner | -8/Materials Commander-Gunner | -7/Factory Gunner | -6/Factory Scavenger-Gunner | -5/Factory Mutant | -5/Extension Resources | -11 -10 -9 -9 -8 -7 -6 -5 -5 ----------- Run | Yrd Mat Mat Sto Mat Fac Fac Fac Ext Matter Collected 2874 | 276 34 146 235 121 388 1236 438 . Remotely . | . . . . . . . . . Salvage Created 3471 | 83 104 331 230 63 317 1407 936 . Parts 155 | 3 3 22 9 1 13 75 29 . Haulers Intercepted 1 | . . . . . . 1 . . Recyclers Shooed 2 | . . . . . . 1 1 . Parts Field Recycled . | . . . . . . . . . Retrieved Matter . | . . . . . . . . . Parts Self-Destructed . | . . . . . . . . . Prevented . | . . . . . . . . . Kills | -11 -10 -9 -9 -8 -7 -6 -5 -5 ------- Run | Yrd Mat Mat Sto Mat Fac Fac Fac Ext Combat Hostiles Destroyed 60 | . 2 7 5 2 6 22 16 . Melee 2 | . . . . . . 2 . . Guns 31 | . 2 7 5 2 3 8 4 . Cannons 21 | . . . . . 3 11 7 . AOE 3 | . . . . . . . 3 . Classes Destroyed 12 | 1 1 1 . 2 1 5 1 . Worker 7 | . . 1 . . . 3 3 . Builder 6 | . . . . . . 5 1 . Hauler 1 | . . . . . . 1 . . Recycler 4 | 1 . . . . 1 2 . . Operator 1 | . . . . . . . 1 . Swarmer 3 | . . . . 1 . 1 1 . Grunt 37 | . 2 7 5 . 2 11 10 . Brawler 3 | . . . . . 1 1 1 . Duelist 1 | . . . . . . 1 . . Sentry 7 | . . . . 1 3 1 2 . Hunter 6 | . . . . . . 4 2 . Programmer 3 | . . . . . . 3 . . Best Kill Streak 6 | 1 2 4 3 1 2 6 6 . Combat Bots Only 4 | . 2 4 3 1 2 3 4 . Max Kills in Single Turn 5 | 1 1 1 2 1 2 2 5 . Gunslinging 1 | . . . 1 . . . . . Exploded 3 | . . . . . . . 3 . Melee 1 | . . . . . . 1 . . Uniques/NPCs Destroyed . | . . . . . . . . . Combat | -11 -10 -9 -9 -8 -7 -6 -5 -5 -------- Run | Yrd Mat Mat Sto Mat Fac Fac Fac Ext Hostile Shots Fired 596 | . 8 66 29 8 74 239 158 14 Missed 160 | . . 9 9 2 25 59 47 9 Damage Taken 8286 | . 108 743 300 68 468 3509 2962 128 Core 1450 | . 33 92 28 6 10 272 958 51 Absorbed by Shields . | . . . . . . . . . Core Remaining (%) 86 | 100 86 . 70 98 98 68 . . Volleys Fired 177 | 8 7 34 21 4 11 56 36 . Largest 5 | 2 2 2 2 3 4 5 5 . Hottest 326 | 40 40 40 43 69 172 293 326 . Shots Fired 580 | 16 14 68 42 12 44 234 150 . Gun 384 | 16 14 68 42 12 21 104 107 . Cannon 196 | . . . . . 23 130 43 . Launcher . | . . . . . . . . . Special . | . . . . . . . . . Kinetic 447 | 16 14 68 42 12 44 202 49 . Thermal 133 | . . . . . . 32 101 . Explosive . | . . . . . . . . . Electromagnetic . | . . . . . . . . . Robot Hit Streak 17 | 4 5 12 6 3 7 17 14 . Robot Miss Streak 5 | 4 1 5 3 3 5 3 4 . Penetration Max 1 | . . . . . . 1 1 . Secondary Targets 5 | . . 4 1 . . . . . Max Gunslinging Chain 1 | . . 1 1 . . . . . Shots Hit Robots 343 | 9 9 49 25 5 32 133 81 . Core Hits 162 | 2 6 22 11 4 23 60 34 . Critical Kills 5 | . . . . . 1 2 2 . Critical Parts Destroyed 1 | . . . . . . 1 . . Critical Strikes 18 | . . . . . 2 13 3 . Burn 2 | . . . . . . 1 1 . Meltdown 1 | . . . . . . 1 . . Destroy 5 | . . . . . 1 2 2 . Blast 9 | . . . . . 1 8 . . Impale 1 | . . . . . . 1 . . Melee Attacks 25 | . . . . . . 25 . . Impact 2 | . . . . . . 2 . . Slashing . | . . . . . . . . . Piercing 23 | . . . . . . 23 . . Sneak Attacks 3 | . . . . . . 3 . . Combat Hostiles . | . . . . . . . . . Follow-up Attacks 2 | . . . . . . 2 . . Damage Inflicted 8760 | 71 75 415 305 120 716 4033 3025 . Guns 3817 | 71 75 411 295 97 288 1273 1307 . Cannons 3026 | . . . . . 423 1814 789 . Explosions 1290 | . . . . . . 361 929 . Melee 559 | . . . . . . 559 . . Ramming 68 | . . 4 10 23 5 26 . . Kinetic 4651 | 71 75 411 295 97 711 2493 498 . Thermal 3400 | . . . . . . 955 2445 . Explosive 82 | . . . . . . . 82 . Electromagnetic . | . . . . . . . . . Impact 102 | . . . . . . 102 . . Slashing . | . . . . . . . . . Piercing 457 | . . . . . . 457 . . Highest Corruption 3 | . . . . . . 3 2 2 Average Corruption 2 | . . . . . . 3 2 2 Corruption Purged . | . . . . . . . . . Corruption Blocked . | . . . . . . . . . Effects 5 | . . . . . . 4 . 1 Message Errors 2 | . . . . . . 2 . . Matter Fused 1 | . . . . . . 1 . . Energy Discharges 1 | . . . . . . 1 . . Data Loss (minor) 1 | . . . . . . . . 1 Overload Shots . | . . . . . . . . . Overflow Damage 484 | . . . . . 8 204 272 . Projectiles 103 | . . . . . 8 29 66 . Explosions 283 | . . . . . . 77 206 . Melee 98 | . . . . . . 98 . . Knockbacks 25 | . . . . . 3 22 . . Impact . | . . . . . . . . . Kinetic 25 | . . . . . 3 22 . . Secondary . | . . . . . . . . . Self-Inflicted Damage 48 | . . . . . . 48 . . Shots 1 | . . . . . . 1 . . Rammed 4 | . . . . 2 1 1 . . Targets Rammed 9 | . . 1 2 2 2 2 . . Kicked 3 | . . 1 2 . . . . . Crushed 2 | . . . . . 1 1 . . Highest Temperature 764 | . 18 118 . . 96 425 764 . Average Temperature 160 | . 9 62 . . 39 122 271 . Received Heat Transfer 2505 | . 60 492 159 9 120 894 759 12 Effects 41 | . . . . . . . 41 . Shutdowns 14 | . . . . . . . 14 . Energy Bleed 2 | . . . . . . . 2 . Interference 7 | . . . . . . . 7 . Matter Decay 5 | . . . . . . . 5 . Short Circuit 3 | . . . . . . . 3 . Damage (minor) 1 | . . . . . . . 1 . Damage (major) 5 | . . . . . . . 5 . Damage (core) 4 | . . . . . . . 4 . Siege Activations . | . . . . . . . . . Robots Corrupted 1 | . . . . . . 1 . . Combat Hostiles 1 | . . . . . . 1 . . Parts Fried 2 | . . . . . . 2 . . Impact Corruptions 4 | . . . . . . 4 . . Robots Melted 3 | . . . . . . 1 2 . Combat Hostiles 2 | . . . . . . . 2 . Parts Melted 13 | . . . . . 1 6 6 . Heat Transferred 4399 | . . . . . . 1231 3168 . Parts Sabotaged . | . . . . . . . . . Parts Stolen . | . . . . . . . . . Parts Stripped . | . . . . . . . . . Power Chain Reactions . | . . . . . . . . . Alert | -11 -10 -9 -9 -8 -7 -6 -5 -5 ------- Run | Yrd Mat Mat Sto Mat Fac Fac Fac Ext Peak Influence 707 | 5 68 133 213 309 274 368 707 297 Initial 272 | . 3 28 . 60 80 67 116 272 Average 179 | 1 52 82 90 157 154 179 390 275 Maximum Alert Level 3 | . . . 1 1 1 1 3 1 Low Security (%) 69 | 100 100 100 92 65 74 69 21 . Level 1 24 | . . . 7 34 25 30 33 100 Level 2 6 | . . . . . . . 43 . Level 3 . | . . . . . . . 1 . Level 4 . | . . . . . . . . . Level 5 . | . . . . . . . . . High Security . | . . . . . . . . . Max Security . | . . . . . . . . . Squads Dispatched 17 | . . . 1 2 1 8 5 . Investigation 2 | . . . . 1 . . 1 . Extermination 4 | . . . . . 1 3 . . Reinforcement 9 | . . . 1 1 . 4 3 . Assault 1 | . . . . . . . 1 . Garrison 1 | . . . . . . 1 . . Intercept . | . . . . . . . . . Searches Triggered . | . . . . . . . . . Construction Impeded 3 | . . . . . . 2 1 . Haulers Reinforced 1 | . . . . . . 1 . . Active Scanning Responses . | . . . . . . . . . Cargo Convoy Interrupts . | . . . . . . . . . Stealth | -11 -10 -9 -9 -8 -7 -6 -5 -5 --------- Run | Yrd Mat Mat Sto Mat Fac Fac Fac Ext Distress Signals 15 | . . 2 1 4 . 1 7 . Communications Jammed . | . . . . . . . . . Distress Signals . | . . . . . . . . . Times Spotted 104 | . 2 8 11 12 9 30 28 4 Peak Tracking Total 11 | . 2 5 4 4 2 5 11 4 Tactical Retreats 5 | . . . . . . 3 2 . Traps | -11 -10 -9 -9 -8 -7 -6 -5 -5 ------- Run | Yrd Mat Mat Sto Mat Fac Fac Fac Ext Traps Triggered 5 | . . . . 1 . 1 3 . Indirectly . | . . . . . . . . . Trap Hack Attempts . | . . . . . . . . . Triggered . | . . . . . . . . . Disarmed . | . . . . . . . . . Reprogrammed . | . . . . . . . . . Reused . | . . . . . . . . . Traps Extracted . | . . . . . . . . . Installed . | . . . . . . . . . Triggered . | . . . . . . . . . Machines | -11 -10 -9 -9 -8 -7 -6 -5 -5 ---------- Run | Yrd Mat Mat Sto Mat Fac Fac Fac Ext Machines Disabled 25 | . . . 1 . . 10 14 . Max in Single Turn 14 | . . . 1 . . 4 14 . Machines Repaired . | . . . . . . . . . Machines Dismantled 1 | . . . 1 . . . . . Machines Sabotaged . | . . . . . . . . . Overloaded Fab Kills . | . . . . . . . . . Hacking | -11 -10 -9 -9 -8 -7 -6 -5 -5 --------- Run | Yrd Mat Mat Sto Mat Fac Fac Fac Ext Machines Accessed 3 | . . 1 1 . . . 1 . Terminals 3 | . . 1 1 . . . 1 . Fabricators . | . . . . . . . . . Repair Stations . | . . . . . . . . . Recycling Units . | . . . . . . . . . Scanalyzers . | . . . . . . . . . Garrison Access . | . . . . . . . . . Total Hacks 6 | . . 2 2 . . . 2 . Successful 3 | . . 1 1 . . . 1 . Failed 3 | . . 1 1 . . . 1 . Catastrophic 1 | . . 1 . . . . . . Database Lockouts . | . . . . . . . . . Manual 3 | . . 2 . . . . 1 . Terminals 6 | . . 2 2 . . . 2 . Fabricators . | . . . . . . . . . Repair Stations . | . . . . . . . . . Recycling Units . | . . . . . . . . . Scanalyzers . | . . . . . . . . . Garrison Access . | . . . . . . . . . Terminal Hacks 3 | . . 1 1 . . . 1 . Open Door 1 | . . . 1 . . . . . Alert Level 1 | . . . . . . . 1 . Unreport Threat 1 | . . 1 . . . . . . Fabricator Hacks . | . . . . . . . . . Repair Station Hacks . | . . . . . . . . . Recycling Unit Hacks . | . . . . . . . . . Scanalyzer . | . . . . . . . . . Garrison Access Hacks . | . . . . . . . . . Unauthorized Hacks . | . . . . . . . . . Terminals . | . . . . . . . . . Fabricators . | . . . . . . . . . Repair Stations . | . . . . . . . . . Recycling Units . | . . . . . . . . . Scanalyzers . | . . . . . . . . . Garrison Access . | . . . . . . . . . Data Cores Recovered . | . . . . . . . . . Used . | . . . . . . . . . Hacking Detections 1 | . . 1 . . . . . . Full Trace Events . | . . . . . . . . . Feedback Events . | . . . . . . . . . Feedback Blocked . | . . . . . . . . . Robot Schematics Acquired . | . . . . . . . . . Robots Built . | . . . . . . . . . Authchips . | . . . . . . . . . Time . | . . . . . . . . . Total Robot Build Rating . | . . . . . . . . . Part Schematics Acquired . | . . . . . . . . . Parts Built . | . . . . . . . . . Authchips . | . . . . . . . . . Time . | . . . . . . . . . Total Part Build Rating . | . . . . . . . . . Parts Repaired . | . . . . . . . . . Time . | . . . . . . . . . Parts Recycled . | . . . . . . . . . Recycled Matter . | . . . . . . . . . Retrieved Matter . | . . . . . . . . . Retrieved Components . | . . . . . . . . . Parts Scanalyzed . | . . . . . . . . . Part Schematics Acquired . | . . . . . . . . . Parts Damaged . | . . . . . . . . . Bothacking | -11 -10 -9 -9 -8 -7 -6 -5 -5 ------------ Run | Yrd Mat Mat Sto Mat Fac Fac Fac Ext Used RIF Installer . | . . . . . . . . . Robots Hacked . | . . . . . . . . . Non-combat . | . . . . . . . . . Combat . | . . . . . . . . . Robot Hacks Applied . | . . . . . . . . . Relay Couplers Released . | . . . . . . . . . Fabnet Peak Effective % . | . . . . . . . . . Robots Rewired . | . . . . . . . . . Allies Hacked . | . . . . . . . . . Hacks Repelled . | . . . . . . . . . Allies | -11 -10 -9 -9 -8 -7 -6 -5 -5 -------- Run | Yrd Mat Mat Sto Mat Fac Fac Fac Ext Total Allies 10 | . . . 10 . . . . . Largest Group 10 | . . . 10 10 5 . . . Highest-Rated Group 88 | . . . 88 88 48 . . . Highest-Rated Ally 16 | . . . 16 16 16 . . . Total Orders . | . . . . . . . . . Ally Attacks 125 | . . . 17 81 27 . . . Total Damage 1007 | . . . 143 673 191 . . . Kills 20 | . . . 5 12 3 . . . Allies Corrupted . | . . . . . . . . . Allies Melted . | . . . . . . . . . Intel | -11 -10 -9 -9 -8 -7 -6 -5 -5 ------- Run | Yrd Mat Mat Sto Mat Fac Fac Fac Ext Robot Analysis Total . | . . . . . . . . . Derelict Logs Recovered . | . . . . . . . . . Drone Launches . | . . . . . . . . . Drone Recoveries . | . . . . . . . . . Exploration | -11 -10 -9 -9 -8 -7 -6 -5 -5 ------------- Run | Yrd Mat Mat Sto Mat Fac Fac Fac Ext Turns Passed 4750 | 115 172 308 605 504 545 1772 684 45 Spaces Moved 2666 | 72 116 159 372 289 291 882 396 89 Core 113 | 6 . . . . . 5 13 89 Treads 1132 | . . . . 281 291 560 . . Legs 1421 | 66 116 159 372 8 . 317 383 . Wheels . | . . . . . . . . . Hover . | . . . . . . . . . Flight . | . . . . . . . . . Fastest Speed 50 | 50 120 120 120 120 158 127 50 50 Average Speed 138 | 118 120 120 120 158 158 155 125 50 Slowest Speed 650 | 190 120 120 120 250 158 650 128 50 Overloaded Moves . | . . . . . . . . . Propulsion Burnouts . | . . . . . . . . . Robots Hopped . | . . . . . . . . . Cave-ins Triggered 1 | . . . . . . 1 . . Exploration Rate (%) 23 | 6 30 22 55 26 12 24 14 21 Regions Visited 8 Branch Regions 2 Pre-discovered Areas . | . . . . . . . . . Known Exits Taken . | . . . . . . . . . Unknown Exits Taken 8 | 1 1 1 1 1 1 1 1 . Scrap Searched . | . . . . . . . . . Spaces Dug 12 | . . . . . . 12 . . Terrain Destroyed 113 | . . . . . 5 74 34 . Melee 3 | . . . . . . 3 . . Projectile 63 | . . . . . 5 40 18 . AOE 47 | . . . . . . 31 16 . Terrain Rammed . | . . . . . . . . . Walls Destroyed . | . . . . . . . . . Machines Disabled . | . . . . . . . . . Actions | -11 -10 -9 -9 -8 -7 -6 -5 -5 --------- Run | Yrd Mat Mat Sto Mat Fac Fac Fac Ext Total 3301 | 86 136 220 482 329 358 1106 495 89 Wait 226 | . 8 7 50 8 11 98 44 . Move 2658 | 71 115 158 371 288 290 881 395 89 Hop . | . . . . . . . . . Pick Up 43 | 1 4 4 6 7 10 11 . . Fast Attach 32 | 6 1 6 . 4 . 12 3 . Attach 23 | . . 2 . 3 2 10 6 . Detach 6 | . . . . 2 . 1 3 . Swap 44 | . 1 4 12 1 14 8 4 . Drop 50 | . . 4 9 10 18 5 4 . Fire 177 | 8 7 34 21 4 11 56 36 . Melee 22 | . . . . . . 22 . . Ram . | . . . . . . . . . Kick 3 | . . 1 2 . . . . . Crush 6 | . . . . 2 2 2 . . Escape Stasis . | . . . . . . . . . Rewire 3 | . . . 3 . . . . . Trap . | . . . . . . . . . Miscellaneous 8 | . . . 8 . . . . . Route ------- -11/Scrapyard -10/Materials -9/Materials -9/Storage -8/Materials -7/Factory -6/Factory -5/Factory -5/Extension History --------- Turn | Location | Event 10 | -11/Scrapyard | Discovered new exit (range 16) 116 | -11/Scrapyard | Entered Materials 276 | -10/Materials | Discovered new exit (range 5) 288 | -10/Materials | Entered another Materials area 288 | -9/Materials | Evolved 2 slots: Propulsion x2 309 | -9/Materials | Build established: Mutant 485 | -9/Materials | Lost 6 parts (1p3n2u) 580 | -9/Materials | Discovered new exit (range 10) 596 | -9/Materials | Entered Storage 797 | -9/Storage | Assisted by bots powering up and referring to "LRC-V3" 1104 | -9/Storage | Build established: Commander-Mutant 1179 | -9/Storage | Discovered new exit (range 6) 1201 | -9/Storage | Entered Materials 1201 | -8/Materials | Accompanied by 10 allies 1201 | -8/Materials | Evolved 2 slots: Utility x1, Weapon x1 1504 | -8/Materials | Build established: Commander-Gunner 1681 | -8/Materials | Discovered new exit (range 8) 1705 | -8/Materials | Entered Factory 1705 | -7/Factory | Accompanied by 5 allies 1705 | -7/Factory | Evolved 2 slots: Utility x1, Weapon x1 2067 | -7/Factory | Lost 3 allies 2235 | -7/Factory | Discovered new exit (range 7) 2250 | -7/Factory | Entered another Factory area 2250 | -6/Factory | Evolved 2 slots: Utility x1, Weapon x1 2310 | -6/Factory | Build established: Gunner 3261 | -6/Factory | Lost 9 parts (1p3n5w) 3507 | -6/Factory | Lost 7 parts (1p3n2u1w) 3610 | -6/Factory | Garrison activated, responded to threat 3714 | -6/Factory | Crushed by falling debris 3971 | -6/Factory | Discovered new exit (range 14) 4022 | -6/Factory | Entered another Factory area 4022 | -5/Factory | Evolved 2 slots: Power x1, Propulsion x1 4284 | -5/Factory | Build established: Scavenger-Gunner 4577 | -5/Factory | Core integrity fell below 50% 4620 | -5/Factory | Core integrity fell below 20% 4622 | -5/Factory | First assault squad dispatched 4690 | -5/Factory | Discovered new exit (range 16) 4706 | -5/Factory | Entered Extension 4733 | -5/Extension | Lost 13 parts (2p5n1u5w) 4743 | -5/Extension | Spotted B-75 Beast 4747 | -5/Extension | Spotted B-75 Beast 4751 | -5/Extension | Destroyed by B-75 Beast with Heavy Plasma Cannon Last Messages --------------- 04695_ K-01 Serf collects debris. 04695_ Critical hit (Burn: +37). 04698_ M-28 Smith repairs Wheel. 04698_ Flexi-carbon Leg destroyed. 04699_ Dropped Lrg. Storage Unit. 04700_ Phase Cannon destroyed. 04700_ Hvy. Ion Cannon destroyed. 04700_ Knocked back. 04702_ Imp. Titanium Leg destroyed. 04702_ K-01 Serf destroyed. 04703_ U-05 Engineer builds a Wall. 04704_ G-50 Soldier destroyed. LOCATION=UNKNOWN GOAL=ESCAPE 04708_ U-05 Engineer exits Transfer Station. 04708_ R-10 Processor exits Transfer Station. 04715_ System corrupted: Component data lost. 04748_ Imp. Titanium Leg destroyed. 04749_ Slug penetrates Wall. 04750_ Penetrated by Slug. Map ----- +----------------------------------------------------+ | ?????????????????????????????????????????????????? | | ?????????????????????????????????????????????????? | | ?????????????????????????????????????????????????? | | ?????????????????????????????????????????????????? | | ?????????????????????????????????????????????????? | | ?????????????????????????????????????????????????? | | ?????????????????????????????????????????????????? | | ?????????????????????????????????????????????????? | | ???????????????????????? #???????????????????????? | | ???????????????????????? #???????????????????????? | | ???????????????????????? #??##?##????????????????? | | ?????????????????????### ### ## ##???????????????? | | ?????????????????????#"" ""Y Y ""??????????????? | | ?????????????????????# " " " ?????????????? | | ?????????????????????# ????????????? | | ???????????#????##???# ????????????? | | ############"####;#### ???????????? | | ???????????? | | ??????????? | | R ??????????? | | % ??????????? | | ?????????? | | ###################### BB BB #??????????? | | ?????????????????????# BB BB #??????????? | | ????????????????????## #??????????? | | ????????????????????#; @ #??????????? | | ????????????????????## #??????????? | | ?????????????????????######T#"""#######??????????? | | ???????????????????????????##????????????????????? | | ?????????????????????????????????????????????????? | | | | | | | | | | | | | | | | | | | | | | | | | | | | | | | | | | | | | | | | | +----------------------------------------------------+ Best States ------------- Heat Dissipation 86 Energy Generation 32 Energy Capacity 525 Matter Stores 300 Matter Capacity 300 Sight Range 20 Terrain Scan Range 20 Terrain Scan Density 10 Armor Coverage 225 Evasion (%) 55 Targeting Accuracy 6 Recoil Reduction 4 Item Schematics ----------------- None Robot Schematics ------------------ None Fabricated ------------ Nothing Alien Tech Used ----------------- None Achievements -------------- More Dakka Please Challenges ------------ None Game ------ Seed SwarmMappingInsulator Manual? 0 Play Time 00:40:42 Cumulative 21.5 hours Start 2024.08.08 @ 11:01:09 End 2024.10.09 @ 15:06:42 Sessions 4 Manual Loads 0 Difficulty Rogue Special Mode None Game No. 42 Rogue 42 Adventurer 0 Explorer 0 Win Type - Total 0 Types 0/0/0/0/0/0/0/0/0 Lore% 12 Gallery% 31 Achievement% 29 Wizard Run 0 Options --------- Layout 0 ASCII 0 Keyboard 1 Movement Numpad Keybinds 0 Fullscreen 2 Font 24/Terminus Map View 76x50 Zoom Use 0% Tactical HUD 1 Map Filters NONE Filters NONE Steam 1 RUN: ae7e0d26-1881-4d26-9822-e14fef0e9842